fUSD/lending_fUSD_20240907
["ID","MTS","AMOUNT","RATE_DAILY","PERIOD"]
[337515371,1725729042099,-500.0,0.00014794,2]
[337515372,1725729042109,-194.51698888,0.00014794,2]
[337515373,1725729042119,-500.0,0.00014794,2]
[337515374,1725729042128,-500.0,0.00014794,2]
[337515375,1725729042137,-500.0,0.00014794,2]
[337515376,1725729042147,-500.0,0.00014794,2]
[337515377,1725729042157,-1634.44,0.00014794,2]
[337515378,1725729042167,-1634.44,0.00014794,2]
[337515379,1725729042179,-500.0,0.00014794,2]
[337515380,1725729042189,-508.19568627,0.00014794,2]
[337515381,1725729042201,-500.0,0.00014794,2]
[337515382,1725729042212,-500.0,0.00014794,2]
[337515383,1725729042222,-500.0,0.00014794,2]
[337515384,1725729042233,-500.0,0.00014794,2]
[337515385,1725729042245,-500.0,0.00014794,2]
[337515386,1725729042256,-605.17004484,0.00014794,2]
[337515387,1725729042266,-500.0,0.00014794,2]
[337515388,1725729042280,-500.0,0.00014794,2]
[337515389,1725729042290,-500.0,0.00014794,2]
[337515390,1725729042303,-500.0,0.00014794,2]
[337515391,1725729042314,-500.0,0.00014794,2]
[337515392,1725729042324,-713.31,0.00014794,2]
[337515393,1725729042334,-532.31074961,0.00014794,2]
[337515394,1725729042345,-713.31,0.00014794,2]
[337515395,1725729042355,-713.31,0.00014794,2]
[337515396,1725729042365,-3492.42,0.00014794,2]
[337515397,1725729042378,-713.31,0.00014794,2]
[337515398,1725729042388,-3492.42,0.00014794,2]
[337515399,1725729042399,-713.31,0.00014794,2]
[337515400,1725729042410,-440.32839547,0.00014794,2]
[337515401,1725729042419,-500.0,0.00014794,2]
[337515402,1725729042430,-3619.32,0.00014794,2]
[337515403,1725729042440,-3619.32,0.00014794,2]
[337515404,1725729042450,-500.0,0.00014794,2]
[337515405,1725729042460,-503.57,0.00014794,2]
[337515406,1725729042471,-500.0,0.00014794,2]
[337515407,1725729042480,-3765.56,0.00014794,2]
[337515408,1725729042491,-500.0,0.00014794,2]
[337515409,1725729042505,-3765.56,0.00014794,2]
[337515410,1725729042515,-3765.56,0.00014794,2]
[337515411,1725729042524,-3765.56,0.00014794,2]
[337515412,1725729042534,-3765.56,0.00014794,2]
[337515413,1725729042544,-741.73,0.00014794,2]
[337515414,1725729042553,-521.04,0.00014794,2]
[337515415,1725729042562,-741.73,0.00014794,2]
[337515416,1725729042572,-521.04,0.00014794,2]
[337515417,1725729042581,-1168.01,0.00014794,2]
[337515418,1725729042591,-1168.01,0.00014794,2]
[337515419,1725729042600,-505.85968593,0.00014794,2]
[337515420,1725729042609,-3473.34,0.00014794,2]
[337515421,1725729042619,-3473.34,0.00014794,2]
[337515422,1725729042628,-500.0,0.00014794,2]
[337515423,1725729042638,-500.0,0.00014794,2]
[337515424,1725729042647,-500.0,0.00014794,2]
[337515425,1725729042657,-489.48,0.00014794,2]
[337515426,1725729042666,-500.0,0.00014794,2]
[337515427,1725729042675,-500.0,0.00014794,2]
[337515428,1725729042685,-500.0,0.00014794,2]
[337515429,1725729042694,-500.0,0.00014794,2]
[337515430,1725729042704,-500.0,0.00014794,2]
[337515431,1725729042713,-500.0,0.00014794,2]
[337515432,1725729042723,-483.81,0.00014794,2]
[337515433,1725729042732,-3523.22,0.00014794,2]
[337515434,1725729042742,-3523.22,0.00014794,2]
[337515435,1725729042753,-505.19682177,0.00014794,2]
[337515436,1725729042763,-726.94,0.00014794,2]
[337515437,1725729042772,-726.94,0.00014794,2]
[337515438,1725729042782,-500.0,0.00014794,2]
[337515439,1725729042791,-500.0,0.00014794,2]
[337515440,1725729042802,-744.88,0.00014794,2]
[337515441,1725729042811,-17050.7216548,0.00014798,3]
[337515442,1725729042821,-150.0,0.000148,2]
[337515443,1725729042831,-800.0,0.000148,5]
[337515444,1725729042841,-15221.71530684,0.00014801,2]
[337515445,1725729042951,-741.46321172,0.00014805,2]
[337515446,1725729042960,-265.34310616,0.00014805,2]
[337515447,1725729042970,-352.10384507,0.00014805,2]
[337515448,1725729042979,-500.0,0.00014808,2]
[337515449,1725729042988,-960.15,0.00014808,2]
[337515450,1725729042999,-760.06,0.00014808,2]
[337515451,1725729043008,-3894.65,0.00014808,2]
[337515452,1725729043017,-901.51,0.00014808,2]
[337515453,1725729043027,-15130.87,0.00014808,2]
[337515454,1725729043036,-4184.47,0.00014808,2]
[337515455,1725729043046,-5966.37,0.00014808,2]
[337515456,1725729043055,-2214.78,0.00014808,2]
[337515457,1725729043065,-500.0,0.00014808,2]
[337515458,1725729043074,-500.0,0.00014808,2]
[337515459,1725729043083,-500.0,0.00014808,2]
[337515460,1725729043093,-2419.77,0.00014808,2]
[337515461,1725729043103,-11456.85,0.00014808,2]
[337515463,1725729043112,-3997.99,0.00014808,2]
[337515464,1725729043122,-530.84,0.00014808,2]
[337515466,1725729043132,-6537.33,0.00014808,2]
[337515468,1725729043142,-1222.68,0.00014808,2]
[337515471,1725729043151,-2695.39,0.00014808,2]
[337515472,1725729043160,-1392.75,0.00014808,2]
[337515474,1725729043170,-2258.48,0.00014808,2]
[337515476,1725729043179,-500.0,0.00014808,2]
[337515477,1725729043189,-500.0,0.00014808,2]
[337515478,1725729043198,-1507.17,0.00014808,2]
[337515479,1725729043208,-908.44,0.00014808,2]
[337515480,1725729043217,-1634.44,0.00014808,2]
[337515481,1725729043227,-500.0,0.00014808,2]
[337515482,1725729043236,-500.0,0.00014808,2]
[337515483,1725729043246,-3492.42,0.00014808,2]
[337515484,1725729043256,-3619.32,0.00014808,2]
[337515485,1725729043265,-741.73,0.00014808,2]
[337515486,1725729043275,-1168.01,0.00014808,2]
[337515487,1725729043285,-3473.34,0.00014808,2]
[337515488,1725729043300,-214.18790077,0.00014808,2]
[337515494,1725729043703,-285.81209923,0.00014808,2]
[337515495,1725729043720,-2152.18423481,0.00014808,2]
[337515496,1725729043737,-1371.03576519,0.00014808,2]
[337515497,1725729043756,-103.14906393,0.00014808,2]
[337515498,1725729043781,-623.79093607,0.00014808,2]
[337515499,1725729043796,-150.0,0.0001481,2]
[337515500,1725729043811,-150.0,0.00014811,2]
[337515501,1725729043825,-741.46321172,0.0001482,2]
[337515502,1725729043840,-265.34310616,0.0001482,2]
[337515503,1725729043855,-352.10384507,0.0001482,2]
[337515504,1725729043870,-741.46321172,0.00014835,2]
[337515505,1725729043885,-265.34310616,0.00014835,2]
[337515506,1725729043899,-352.10384507,0.00014835,2]
[337515507,1725729043914,-150.0,0.00014836,2]
[337515508,1725729043928,-150.0,0.00014836,2]
[337515509,1725729043943,-3410.14433096,0.0001484,3]
[337515510,1725729043957,-3410.14433096,0.0001484,3]
[337515511,1725729043971,-741.46321172,0.0001485,2]
[337515512,1725729043986,-265.34310616,0.0001485,2]
[337515513,1725729044001,-352.10384507,0.0001485,2]
[337515514,1725729044015,-15221.71530684,0.0001485,2]
[337515515,1725729044029,-150.0,0.00014861,2]
[337515516,1725729044044,-741.46321172,0.00014865,2]
[337515517,1725729044058,-265.34310616,0.00014865,2]
[337515518,1725729044073,-352.10384507,0.00014865,2]
[337515519,1725729044087,-741.46321172,0.0001488,2]
[337515520,1725729044101,-265.34310616,0.0001488,2]
[337515521,1725729044115,-352.10384507,0.0001488,2]
[337515522,1725729044129,-1912.75221565,0.00014882,3]
[337515523,1725729044146,-1224.92496,0.00014882,3]
[337515524,1725729044163,-272.46715531,0.00014882,3]
[337515525,1725729044177,-7.46116208,0.00014883,3]
[337515526,1725729044779,-441.00459755,0.00014794,2]
[337515527,1725729044876,-303.87540245,0.00014794,2]
[337515528,1725729044885,-12.07166022,0.00014794,2]
[337515529,1725729044896,-462.45588772,0.00014794,2]
[337515530,1725729044907,-264.54053448,0.00014794,2]
[337515531,1725729044918,-5.81191758,0.00014794,2]
[337515532,1725729044926,-508.65166684,0.00014794,2]
[337515533,1725729044935,-744.88,0.00014794,2]
[337515534,1725729044944,-744.88,0.00014794,2]
[337515535,1725729044953,-500.0,0.00014794,2]
[337515536,1725729044962,-1667.23,0.00014794,2]
[337515537,1725729044971,-10626.90037741,0.00014883,3]
[337515538,1725729044981,-11216.25702667,0.00014883,3]
[337515539,1725729044993,-2020.39175054,0.00014883,3]
[337515540,1725729045002,-3410.14433096,0.00014884,3]
[337515541,1725729045012,-182.16867782,0.00014884,2]
[337515542,1725729045022,-150.0,0.00014886,2]
[337515543,1725729045032,-182.16867781,0.00014888,2]
[337515544,1725729045042,-6820.28866192,0.00014889,3]
[337515545,1725729045051,-217.12067785,0.00014891,2]
[337515546,1725729045060,-182.16867781,0.00014892,2]
[337515547,1725729045070,-500.0,0.00014892,2]
[337515548,1725729045079,-500.0,0.00014892,2]
[337515549,1725729045088,-1245.72,0.00014892,2]
[337515550,1725729045098,-835.44,0.00014892,2]
[337515551,1725729045106,-713.31,0.00014892,2]
[337515552,1725729045115,-3611.96514529,0.00014892,2]
[337515553,1725729045128,-153.59485471,0.00014892,2]
[337515554,1725729045137,-744.88,0.00014892,2]
[337515555,1725729045146,-184.96667113,0.00014892,2]
[337515556,1725729045158,-5340.98495427,0.00014892,2]
[337515557,1725729045170,-338.26352533,0.00014892,2]
[337515558,1725729045181,-3918.16145594,0.00014892,2]
[337515559,1725729045191,-587.2429066,0.00014893,2]
[337515560,1725729045200,-500.0,0.00014893,2]
[337515561,1725729045209,-500.0,0.00014893,2]
[337515562,1725729045219,-30.79858293,0.00014893,2]
[337515563,1725729045230,-1828.50141707,0.00014893,2]
[337515564,1725729045240,-561.15,0.00014893,2]
[337515565,1725729045250,-892.91,0.00014893,2]
[337515566,1725729045259,-1649.43,0.00014893,2]
[337515567,1725729045269,-2634.46,0.00014893,2]
[337515568,1725729045278,-233.07094883,0.00014893,2]
[337515569,1725729045292,-1335.92905117,0.00014893,2]
[337515570,1725729045301,-500.0,0.00014893,2]
[337515571,1725729045311,-500.0,0.00014893,2]
[337515572,1725729045320,-500.0,0.00014893,2]
[337515573,1725729045330,-1840.85,0.00014893,2]
[337515574,1725729045339,-500.0,0.00014893,2]
[337515575,1725729045348,-1293.4292818,0.00014893,2]
[337515576,1725729045359,-690.3007182,0.00014893,2]
[337515577,1725729045370,-1088.03,0.00014893,2]
[337515578,1725729045379,-500.0,0.00014893,2]
[337515579,1725729045388,-2235.06,0.00014893,2]
[337515580,1725729045397,-507.56282774,0.00014893,2]
[337515581,1725729045407,-500.0,0.00014893,2]
[337515582,1725729045415,-495.31802825,0.00014893,2]
[337515583,1725729045431,-4.68197175,0.00014893,2]
[337515584,1725729045439,-500.0,0.00014893,2]
[337515585,1725729045448,-500.0,0.00014893,2]
[337515586,1725729045457,-926.8,0.00014893,2]
[337515587,1725729045466,-1515.73,0.00014893,2]
[337515588,1725729045476,-500.0,0.00014893,2]
[337515589,1725729045485,-500.0,0.00014893,2]
[337515590,1725729045494,-2080.66,0.00014893,2]
[337515591,1725729045503,-500.0,0.00014893,2]
[337515592,1725729045513,-500.0,0.00014893,2]
[337515593,1725729045522,-879.79,0.00014893,2]
[337515594,1725729045531,-981.02,0.00014893,2]
[337515595,1725729045539,-500.0,0.00014893,2]
[337515596,1725729045548,-1401.88,0.00014893,2]
[337515597,1725729045557,-500.0,0.00014893,2]
[337515598,1725729045566,-535.01,0.00014893,2]
[337515599,1725729045576,-500.0,0.00014893,2]
[337515600,1725729045585,-500.0,0.00014893,2]
[337515601,1725729045594,-404.40813991,0.00014893,2]
[337515602,1725729045603,-500.0,0.00014893,2]
[337515603,1725729045612,-638.04802569,0.00014893,2]
[337515604,1725729045621,-500.0,0.00014893,2]
[337515605,1725729045630,-921.35,0.00014893,2]
[337515606,1725729045639,-500.0,0.00014893,2]
[337515607,1725729045649,-500.0,0.00014893,2]
[337515608,1725729045658,-500.0,0.00014893,2]
[337515609,1725729045667,-2328.51,0.00014893,2]
[337515610,1725729045676,-500.0,0.00014893,2]
[337515611,1725729045685,-881.96,0.00014893,2]
[337515612,1725729045695,-984.38,0.00014893,2]
[337515613,1725729045704,-500.0,0.00014893,2]
[337515614,1725729045714,-500.0,0.00014893,2]
[337515615,1725729045723,-2839.95,0.00014893,2]
[337515616,1725729045733,-779.19,0.00014893,2]
[337515617,1725729045743,-500.0,0.00014893,2]
[337515618,1725729045753,-500.0,0.00014893,2]
[337515619,1725729045762,-500.0,0.00014893,2]
[337515620,1725729045771,-1056.18,0.00014893,2]
[337515621,1725729045780,-2420.08,0.00014893,2]
[337515622,1725729045789,-500.0,0.00014893,2]
[337515623,1725729045798,-191.06,0.00014893,2]
[337515624,1725729045808,-703.37,0.00014893,2]
[337515625,1725729045818,-649.21,0.00014893,2]
[337515626,1725729045827,-577.9,0.00014893,2]
[337515627,1725729045836,-532.87,0.00014893,2]
[337515628,1725729045845,-3155.36,0.00014893,2]
[337515629,1725729045855,-667.45,0.00014893,2]
[337515630,1725729045864,-1409.76,0.00014893,2]
[337515631,1725729045873,-500.0,0.00014893,2]
[337515632,1725729045882,-500.0,0.00014893,2]
[337515633,1725729045891,-500.0,0.00014893,2]
[337515635,1725729045900,-500.0,0.00014893,2]
[337515637,1725729045910,-500.0,0.00014893,2]
[337515639,1725729045919,-500.0,0.00014893,2]
[337515641,1725729045927,-500.0,0.00014893,2]
[337515642,1725729045937,-500.0,0.00014893,2]
[337515644,1725729045945,-500.0,0.00014893,2]
[337515645,1725729045955,-500.0,0.00014893,2]
[337515646,1725729045964,-500.0,0.00014893,2]
[337515647,1725729045973,-613.59,0.00014893,2]
[337515650,1725729045983,-500.0,0.00014893,2]
[337515651,1725729045991,-500.0,0.00014893,2]
[337515653,1725729046002,-500.0,0.00014893,2]
[337515654,1725729046011,-500.0,0.00014893,2]
[337515655,1725729046020,-1041.91,0.00014893,2]
[337515656,1725729046028,-500.0,0.00014893,2]
[337515657,1725729046038,-501.15774957,0.00014893,2]
[337515658,1725729046047,-2795.49,0.00014893,2]
[337515659,1725729046056,-500.0,0.00014893,2]
[337515660,1725729046065,-500.0,0.00014893,2]
[337515661,1725729046074,-500.0,0.00014893,2]
[337515662,1725729046084,-500.0,0.00014893,2]
[337515664,1725729046093,-500.0,0.00014893,2]
[337515666,1725729046102,-500.0,0.00014893,2]
[337515667,1725729046111,-521.04,0.00014893,2]
[337515668,1725729046120,-500.0,0.00014893,2]
[337515669,1725729046130,-500.0,0.00014893,2]
[337515670,1725729046139,-500.0,0.00014894,2]
[337515671,1725729046148,-741.46321172,0.00014895,2]
[337515672,1725729046157,-265.34310616,0.00014895,2]
[337515673,1725729046166,-352.10384507,0.00014895,2]
[337515674,1725729046176,-182.16867781,0.00014896,2]
[337515675,1725729046185,-150.0,0.00014898,2]
[337515676,1725729046194,-722.318,0.00014899,2]
[337515677,1725729046204,-206.216,0.00014899,2]
[337515678,1725729046213,-500.0,0.00014899,2]
[337515679,1725729046223,-960.15,0.00014899,2]
[337515680,1725729046232,-3894.65,0.00014899,2]
[337515681,1725729046241,-901.51,0.00014899,2]
[337515682,1725729046251,-15130.87,0.00014899,2]
[337515683,1725729046260,-4184.47,0.00014899,2]
[337515684,1725729046269,-5966.37,0.00014899,2]
[337515685,1725729046278,-2214.78,0.00014899,2]
[337515686,1725729046288,-500.0,0.00014899,2]
[337515687,1725729046298,-500.0,0.00014899,2]
[337515688,1725729046308,-500.0,0.00014899,2]
[337515689,1725729046317,-2419.77,0.00014899,2]
[337515690,1725729046326,-11456.85,0.00014899,2]
[337515691,1725729046337,-3997.99,0.00014899,2]
[337515692,1725729046346,-500.0,0.00014899,2]
[337515693,1725729046355,-530.84,0.00014899,2]
[337515694,1725729046367,-6537.33,0.00014899,2]
[337515695,1725729046377,-1222.68,0.00014899,2]
[337515696,1725729046386,-2695.39,0.00014899,2]
[337515697,1725729046395,-1392.75,0.00014899,2]
[337515698,1725729046406,-500.0,0.00014899,2]
[337515699,1725729046415,-2258.48,0.00014899,2]
[337515700,1725729046424,-500.0,0.00014899,2]
[337515701,1725729046434,-500.0,0.00014899,2]
[337515702,1725729046443,-1245.72,0.00014899,2]
[337515703,1725729046453,-1507.17,0.00014899,2]
[337515704,1725729046462,-908.44,0.00014899,2]
[337515705,1725729046471,-835.44,0.00014899,2]
[337515706,1725729046481,-1634.44,0.00014899,2]
[337515707,1725729046490,-375.78,0.00014899,2]
[337515708,1725729046500,-500.0,0.00014899,2]
[337515709,1725729046510,-3492.42,0.00014899,2]
[337515710,1725729046519,-713.31,0.00014899,2]
[337515711,1725729046528,-3619.32,0.00014899,2]
[337515712,1725729046538,-3765.56,0.00014899,2]
[337515713,1725729046549,-741.73,0.00014899,2]
[337515714,1725729046559,-1168.01,0.00014899,2]
[337515715,1725729046568,-3473.34,0.00014899,2]
[337515716,1725729046577,-500.0,0.00014899,2]
[337515717,1725729046586,-3523.22,0.00014899,2]
[337515718,1725729046596,-726.94,0.00014899,2]
[337515719,1725729046606,-744.88,0.00014899,2]
[337515720,1725729046615,-31929.920888,0.000149,2]
[337515722,1725729046625,-150.0,0.000149,2]
[337515723,1725729046635,-150.0,0.000149,2]
[337515724,1725729046644,-182.16867781,0.000149,2]
[337515725,1725729046653,-87017.0,0.000149,2]
[337515726,1725729046663,-15221.71530684,0.000149,2]
[337515727,1725729046673,-741.46321172,0.00014911,2]
[337515728,1725729046682,-265.34310616,0.00014911,2]
[337515729,1725729046691,-352.10384507,0.00014911,2]
[337515730,1725729046701,-150.0,0.00014911,2]
[337515731,1725729046711,-741.46321172,0.00014926,2]
[337515732,1725729046720,-265.34310616,0.00014926,2]
[337515733,1725729046730,-352.10384507,0.00014926,2]
[337515734,1725729046739,-150.0,0.00014936,2]
[337515735,1725729046749,-741.46321172,0.00014941,2]
[337515736,1725729046758,-265.34310616,0.00014941,2]
[337515737,1725729046768,-352.10384507,0.00014941,2]
[337515738,1725729046777,-741.46321172,0.00014956,2]
[337515739,1725729046786,-265.34310616,0.00014956,2]
[337515740,1725729046795,-352.10384507,0.00014956,2]
[337515741,1725729046805,-150.0,0.00014961,2]
[337515742,1725729046815,-741.46321172,0.00014971,2]
[337515743,1725729046824,-265.34310616,0.00014971,2]
[337515744,1725729046833,-352.10384507,0.00014971,2]
[337515745,1725729046842,-500.0,0.00014973,2]
[337515746,1725729046852,-1444.37,0.00014982,2]
[337515747,1725729046862,-500.0,0.00014983,2]
[337515748,1725729046871,-532.0,0.00014984,2]
[337515749,1725729046880,-245.55012574,0.00014986,2]
[337515750,1725729046889,-273.58711515,0.00014986,2]
[337515751,1725729046898,-258.25391741,0.00014986,2]
[337515752,1725729046907,-150.16900829,0.00014986,2]
[337515753,1725729046916,-162.94870635,0.00014986,2]
[337515754,1725729046925,-243.20371268,0.00014986,2]
[337515755,1725729046934,-4297.0,0.00014986,2]
[337515756,1725729046943,-741.46321172,0.00014986,2]
[337515757,1725729046953,-265.34310616,0.00014986,2]
[337515758,1725729046963,-170.77238643,0.00014986,2]
[337515759,1725729046973,-352.10384507,0.00014986,2]
[337515760,1725729046983,-193.63511683,0.00014986,2]
[337515761,1725729046992,-193.56449436,0.00014986,2]
[337515762,1725729047005,-255.30444537,0.00014986,2]
[337515763,1725729047014,-165.63991103,0.00014986,2]
[337515764,1725729047033,-500.0,0.00014987,2]
[337515765,1725729047042,-530.84,0.00014989,2]
[337515766,1725729047052,-2258.48,0.00014989,2]
[337515767,1725729047062,-500.0,0.00014989,2]
[337515768,1725729047070,-500.0,0.00014989,2]
[337515769,1725729047082,-3619.32,0.00014989,2]
[337515770,1725729047091,-3473.34,0.00014989,2]
[337515771,1725729047100,-726.94,0.00014989,2]
[337515772,1725729047110,-500.0,0.0001499,2]
[337515773,1725729047120,-500.0,0.0001499,2]
[337515774,1725729047129,-1859.3,0.0001499,2]
[337515775,1725729047138,-561.15,0.0001499,2]
[337515776,1725729047147,-892.91,0.0001499,2]
[337515777,1725729047156,-1649.43,0.0001499,2]
[337515778,1725729047166,-2634.46,0.0001499,2]
[337515779,1725729047175,-1569.0,0.0001499,2]
[337515780,1725729047184,-500.0,0.0001499,2]
[337515781,1725729047193,-500.0,0.0001499,2]
[337515782,1725729047204,-1840.85,0.0001499,2]
[337515783,1725729047214,-500.0,0.0001499,2]
[337515784,1725729047223,-1983.73,0.0001499,2]
[337515785,1725729047233,-1088.03,0.0001499,2]
[337515786,1725729047243,-157.6281677,0.0001499,2]
[337515787,1725729047257,-2235.06,0.0001499,2]
[337515788,1725729047267,-500.0,0.0001499,2]
[337515789,1725729047276,-397.86765756,0.0001499,2]
[337515790,1725729047286,-500.0,0.0001499,2]
[337515791,1725729047299,-500.0,0.0001499,2]
[337515792,1725729047308,-926.8,0.0001499,2]
[337515793,1725729047318,-1515.73,0.0001499,2]
[337515794,1725729047328,-500.0,0.0001499,2]
[337515795,1725729047338,-2080.66,0.0001499,2]
[337515796,1725729047348,-500.0,0.0001499,2]
[337515797,1725729047357,-879.79,0.0001499,2]
[337515798,1725729047367,-981.02,0.0001499,2]
[337515799,1725729047378,-500.0,0.0001499,2]
[337515800,1725729047387,-1401.88,0.0001499,2]
[337515801,1725729047397,-500.0,0.0001499,2]
[337515802,1725729047406,-535.01,0.0001499,2]
[337515803,1725729047415,-500.0,0.0001499,2]
[337515804,1725729047424,-500.0,0.0001499,2]
[337515805,1725729047433,-500.0,0.0001499,2]
[337515806,1725729047443,-921.35,0.0001499,2]
[337515807,1725729047454,-500.0,0.0001499,2]
[337515808,1725729047464,-566.08503671,0.0001499,2]
[337515809,1725729047474,-614.0519011,0.0001499,2]
[337515810,1725729047484,-2328.51,0.0001499,2]
[337515811,1725729047494,-500.0,0.0001499,2]
[337515812,1725729047505,-881.96,0.0001499,2]
[337515813,1725729047514,-984.38,0.0001499,2]
[337515814,1725729047523,-500.0,0.0001499,2]
[337515815,1725729047533,-500.0,0.0001499,2]
[337515816,1725729047542,-500.0,0.0001499,2]
[337515817,1725729047551,-2839.95,0.0001499,2]
[337515818,1725729047561,-960.15,0.0001499,2]
[337515819,1725729047571,-779.19,0.0001499,2]
[337515820,1725729047580,-3894.65,0.0001499,2]
[337515821,1725729047589,-498.20215156,0.0001499,2]
[337515822,1725729047598,-500.0,0.0001499,2]
[337515823,1725729047608,-901.51,0.0001499,2]
[337515824,1725729047617,-1056.18,0.0001499,2]
[337515825,1725729047626,-15130.87,0.0001499,2]
[337515826,1725729047636,-4184.47,0.0001499,2]
[337515827,1725729047645,-2420.08,0.0001499,2]
[337515828,1725729047654,-500.0,0.0001499,2]
[337515829,1725729047663,-5966.37,0.0001499,2]
[337515830,1725729047673,-2214.78,0.0001499,2]
[337515831,1725729047682,-703.37,0.0001499,2]
[337515832,1725729047692,-649.21,0.0001499,2]
[337515833,1725729047701,-500.0,0.0001499,2]
[337515834,1725729047711,-500.0,0.0001499,2]
[337515835,1725729047722,-577.9,0.0001499,2]
[337515836,1725729047731,-532.87,0.0001499,2]
[337515837,1725729047741,-3155.36,0.0001499,2]
[337515838,1725729047860,-500.0,0.0001499,2]
[337515839,1725729047888,-667.45,0.0001499,2]
[337515840,1725729047897,-1409.76,0.0001499,2]
[337515841,1725729047907,-2419.77,0.0001499,2]
[337515842,1725729047916,-11456.85,0.0001499,2]
[337515843,1725729047925,-3997.99,0.0001499,2]
[337515844,1725729047935,-281.34,0.0001499,2]
[337515845,1725729047944,-500.0,0.0001499,2]
[337515846,1725729047953,-500.0,0.0001499,2]
[337515847,1725729047962,-530.84,0.0001499,2]
[337515848,1725729047972,-500.0,0.0001499,2]
[337515849,1725729047981,-6537.33,0.0001499,2]
[337515850,1725729047990,-500.0,0.0001499,2]
[337515851,1725729048002,-613.59,0.0001499,2]
[337515852,1725729048011,-500.0,0.0001499,2]
[337515853,1725729048021,-1222.68,0.0001499,2]
[337515854,1725729048030,-2695.39,0.0001499,2]
[337515855,1725729048039,-1392.75,0.0001499,2]
[337515856,1725729048049,-500.0,0.0001499,2]
[337515857,1725729048058,-2258.48,0.0001499,2]
[337515858,1725729048067,-500.0,0.0001499,2]
[337515859,1725729048076,-500.0,0.0001499,2]
[337515860,1725729048086,-500.0,0.0001499,2]
[337515861,1725729048095,-195.94703694,0.0001499,2]
[337515862,1725729048105,-1041.91,0.0001499,2]
[337515863,1725729048114,-1245.72,0.0001499,2]
[337515864,1725729048124,-1507.17,0.0001499,2]
[337515865,1725729048133,-500.0,0.0001499,2]
[337515866,1725729048142,-2795.49,0.0001499,2]
[337515867,1725729048152,-500.0,0.0001499,2]
[337515868,1725729048162,-908.44,0.0001499,2]
[337515869,1725729048171,-500.0,0.0001499,2]
[337515870,1725729048181,-835.44,0.0001499,2]
[337515871,1725729048191,-500.0,0.0001499,2]
[337515872,1725729048201,-1634.44,0.0001499,2]
[337515873,1725729048210,-500.0,0.0001499,2]
[337515874,1725729048219,-500.0,0.0001499,2]
[337515875,1725729048229,-500.0,0.0001499,2]
[337515876,1725729048240,-3492.42,0.0001499,2]
[337515877,1725729048251,-713.31,0.0001499,2]
[337515878,1725729048260,-3619.32,0.0001499,2]
[337515879,1725729048270,-500.0,0.0001499,2]
[337515880,1725729048280,-3765.56,0.0001499,2]
[337515881,1725729048291,-741.73,0.0001499,2]
[337515882,1725729048302,-521.04,0.0001499,2]
[337515883,1725729048312,-1168.01,0.0001499,2]
[337515884,1725729048321,-3473.34,0.0001499,2]
[337515885,1725729048331,-308.06,0.0001499,2]
[337515886,1725729048340,-500.0,0.0001499,2]
[337515887,1725729048350,-465.35200078,0.0001499,2]
[337515888,1725729048360,-3523.22,0.0001499,2]
[337515889,1725729048372,-726.94,0.0001499,2]
[337515890,1725729048382,-744.88,0.0001499,2]
[337515891,1725729048391,-500.0,0.00014991,2]
[337515892,1725729048400,-500.0,0.00014991,2]
[337515893,1725729048410,-500.0,0.00014991,2]